[Event "WJCC U20 Girls 2019"]
[Site "New Delhi"]
[Date "2019.10.21"]
[Round "7.45"]
[White "Reid, Caitlin"]
[Black "Abdala Cancino, Patricia Anastas"]
[Result "0-1"]
[ECO "C55"]
[WhiteElo "1489"]
[BlackElo "1608"]
[Annotator "NA RC"]
[PlyCount "68"]
[EventDate "2019.10.15"]
[EventType "swiss"]
[EventCountry "IND"]
[SourceTitle "playchess.com"]
[Source "ChessBase"]
[SourceQuality "1"]
[TimeControl "40/5400+30:1800+30"]

1. e4 {[%emt 0:00:16]} e5 {[%emt 0:00:26]} 2. Nf3 {[%emt 0:00:15]} Nc6 {[%emt 0:00:23]} 3. d4 {[%emt 0:00:31]} exd4 {[%emt 0:00:09]} 4. Bc4 {[%emt 0:00:11]} Nf6 {[%emt 0:00:06]} 5. e5 {[%emt 0:00:13]} d5 {[%emt 0:00:04]} 6. Bb5 {[%emt 0:00:53]} Ne4 {[%emt 0:00:06]} 7. Nbd2 {[%emt 0:09:31]} Nxd2 {[%emt 0:00:37]} 8. Qxd2 {[%emt 0:02:42]} Bd7 {[%emt 0:01:47]} 9. Bxc6 {[%emt 0:00:38]} bxc6 {[%emt 0:00:45]} 10. Qxd4 {[%emt 0:01:18]} Bf5 {[%emt 0:04:24]} 11. b3 {[%emt 0:01:51]} a5 {[%emt 0:03:25]} 12. O-O {[%emt 0:03:51]} c5 {[%emt 0:06:16]} 13. Qf4 {[%emt 0:19:27]} Qd7 {[%emt 0:07:53]} 14. c3 {[%emt 0:07:46]} Be7 {[%emt 0:00:21]} 15. Re1 {[%emt 0:12:21]} O-O {[%emt 0:01:40]} 16. Ba3 {[%emt 0:01:09]} h6 {[%emt 0:01:24]} 17. Rad1 {[%emt 0:00:26]} c6 {[%emt 0:00:31]} 18. Rd2 {[%emt 0:09:26]} Qe6 {[%emt 0:03:58]} 19. Qe3 {[%emt 0:02:51]} Be4 {[%emt 0:00:58]} 20. Bxc5 {[%emt 0:02:33]} Bxc5 {[%emt 0:00:15]} 21. Qxc5 {[%emt 0:00:03]} Bxf3 {[%emt 0:02:03]} 22. gxf3 {[%emt 0:00:08]} f6 {[%emt 0:00:41]} 23. Qd6 {[%emt 0:05:13]} Qf5 {[%emt 0:03:35]} 24. Re3 {[%emt 0:05:04]} fxe5 {[%emt 0:11:03]} 25. Qxc6 {[%emt 0:02:45]} d4 {[%emt 0:01:23]} 26. Qd5+ {[%emt 0:03:24]} Kh8 {[%emt 0:01:03]} 27. cxd4 {[%emt 0:01:39]} Qb1+ {[%emt 0:01:06]} 28. Kg2 {[%emt 0:00:37]} Ra6 {[%emt 0:00:54]} 29. Qe4 {[%emt 0:05:47]} Rg6+ {[%emt 0:04:10]} 30. Kh3 {[%emt 0:00:08]} Qf1+ {[%emt 0:00:23]} 31. Kh4 {[%emt 0:00:19]} Rf4+ {[%emt 0:00:37]} 32. Qxf4 {[%emt 0:00:05]} exf4 {[%emt 0:00:32]} 33. Re5 {[%emt 0:00:52]} Qg2 {[%emt 0:00:30]} 34. Kh5 {[%emt 0:00:17]} Kh7 {[%emt 0:00:13]} 0-1

[Event "WJCC U20 Girls 2019"]
[Site "New Delhi"]
[Date "2019.10.21"]
[Round "7.46"]
[White "Yaakub, Nov Genevia Pslam"]
[Black "Djuric, Anja"]
[Result "1-0"]
[ECO "B00"]
[WhiteElo "1316"]
[BlackElo "1493"]
[Annotator "NA"]
[PlyCount "154"]
[EventDate "2019.10.15"]
[EventType "swiss"]
[EventCountry "IND"]
[SourceTitle "playchess.com"]
[Source "ChessBase"]
[SourceQuality "1"]
[TimeControl "40/5400+30:1800+30"]

1. e4 {[%emt 0:00:00]} d6 {[%emt 0:00:08]} 2. Nf3 {[%emt 0:00:27]} Nf6 {[%emt 0:00:36]} 3. Nc3 {[%emt 0:00:35]} Bg4 {[%emt 0:00:21]} 4. h3 {[%emt 0:00:55]} Bh5 {[%emt 0:00:08]} 5. Be2 {[%emt 0:02:01]} e5 {[%emt 0:00:18]} 6. d4 {[%emt 0:02:55]} Nc6 {[%emt 0:01:13]} 7. Be3 {[%emt 0:05:05]} Bxf3 {[%emt 0:02:11]} 8. Bxf3 {[%emt 0:00:15]} exd4 {[%emt 0:00:21]} 9. Bxd4 {[%emt 0:00:19]} Nxd4 {[%emt 0:00:33]} 10. Qxd4 {[%emt 0:00:33]} Be7 {[%emt 0:00:33]} 11. O-O {[%emt 0:02:40]} O-O {[%emt 0:00:16]} 12. Rad1 {[%emt 0:02:13]} Nd7 {[%emt 0:02:14]} 13. Rfe1 {[%emt 0:02:56]} Ne5 {[%emt 0:01:02]} 14. Be2 {[%emt 0:05:44]} Bf6 {[%emt 0:02:04]} 15. Qe3 {[%emt 0:00:56]} Nc6 {[%emt 0:01:12]} 16. Kh1 {[%emt 0:07:46]} Nb4 {[%emt 0:06:12]} 17. Qd2 {[%emt 0:03:10]} b6 {[%emt 0:18:17]} 18. a3 {[%emt 0:01:58]} Nc6 {[%emt 0:01:47]} 19. f4 {[%emt 0:06:24]} Nd4 {[%emt 0:08:21]} 20. Bd3 {[%emt 0:03:32]} Re8 {[%emt 0:02:10]} 21. Ne2 {[%emt 0:18:02]} Nxe2 {[%emt 0:00:52]} 22. Rxe2 {[%emt 0:00:12]} Bxb2 {[%emt 0:00:44]} 23. Qb4 {[%emt 0:00:22]} Bf6 {[%emt 0:01:05]} 24. e5 {[%emt 0:01:05]} Bh4 {[%emt 0:07:19]} 25. f5 {[%emt 0:00:44]} Rxe5 {[%emt 0:02:24]} 26. Rxe5 {[%emt 0:01:45]} dxe5 {[%emt 0:00:12]} 27. Qe4 {[%emt 0:00:42]} Bf6 {[%emt 0:01:06]} 28. Be2 {[%emt 0:19:27]} Qf8 {[%emt 0:01:02]} 29. Qc6 {[%emt 0:00:59]} Rd8 {[%emt 0:01:26]} 30. Rxd8 {[%emt 0:07:53]} Qxd8 {[%emt 0:00:07]} 31. Bd3 {[%emt 0:01:40]} h6 {[%emt 0:00:24]} 32. a4 {[%emt 0:01:16]} a5 {[%emt 0:00:13]} 33. Qe4 {[%emt 0:01:00]} c5 {[%emt 0:02:39]} 34. Qc6 {[%emt 0:00:46]} Kh7 {[%emt 0:04:14]} 35. Qe4 {[%emt 0:00:29]} Kg8 {[%emt 0:05:15]} 36. Qc6 {[%emt 0:00:07]} Bg5 {[%emt 0:04:46]} 37. Qe4 {[%emt 0:00:09]} Kf8 {[%emt 0:04:55]} 38. Qxe5 {[%emt 0:00:41]} Bf6 {[%emt 0:03:12]} 39. Qe4 {[%emt 0:00:04]} Bd4 {[%emt 0:01:50]} 40. Qc6 {[%emt 0:00:49]} Be5 {[%emt 0:02:55]} 41. Qe4 {[%emt 0:30:35]} Bc7 {[%emt 0:32:17]} 42. Qc6 {[%emt 0:01:07]} Kg8 {[%emt 0:00:39]} 43. Qe4 {[%emt 0:00:24]} f6 {[%emt 0:00:40]} 44. Qc4+ {[%emt 0:00:35]} Kh7 {[%emt 0:00:43]} 45. Qg4 {[%emt 0:00:15]} Qe7 {[%emt 0:00:26]} 46. Qe2 {[%emt 0:00:52]} Qd6 {[%emt 0:00:32]} 47. Kg1 {[%emt 0:00:32]} Qd4+ {[%emt 0:01:37]} 48. Kh1 {[%emt 0:00:11]} Qa1+ {[%emt 0:00:41]} 49. Qf1 {[%emt 0:00:03]} Qxa4 {[%emt 0:00:18]} 50. Qf3 {[%emt 0:01:09]} Qa1+ {[%emt 0:00:23]} 51. Bf1 {[%emt 0:00:27]} Qe5 {[%emt 0:00:17]} 52. Kg1 {[%emt 0:00:20]} Qf4 {[%emt 0:02:11]} 53. Qh5 {[%emt 0:00:49]} Qg5 {[%emt 0:02:01]} 54. Qf3 {[%emt 0:00:11]} a4 {[%emt 0:00:31]} 55. Bb5 {[%emt 0:00:29]} Qc1+ {[%emt 0:00:28]} 56. Bf1 {[%emt 0:00:14]} a3 {[%emt 0:00:23]} 57. Qg4 {[%emt 0:00:20]} Qe3+ {[%emt 0:00:20]} 58. Kh1 {[%emt 0:00:06]} Qg3 {[%emt 0:00:13]} 59. Qxg3 {[%emt 0:00:31]} Bxg3 {[%emt 0:00:04]} 60. Bc4 {[%emt 0:00:08]} b5 {[%emt 0:00:13]} 61. Ba2 {[%emt 0:00:09]} h5 {[%emt 0:00:16]} 62. Kg1 {[%emt 0:00:06]} Kh6 {[%emt 0:00:07]} 63. Kf1 {[%emt 0:00:21]} Kg5 {[%emt 0:00:08]} 64. Ke2 {[%emt 0:00:36]} Kxf5 {[%emt 0:00:08]} 65. Kd3 {[%emt 0:00:13]} Kf4 {[%emt 0:00:40]} 66. Ke2 {[%emt 0:00:25]} Ke4 {[%emt 0:00:07]} 67. Kd2 {[%emt 0:00:04]} Bf4+ {[%emt 0:00:45]} 68. Kc3 {[%emt 0:01:56]} b4+ {[%emt 0:00:17]} 69. Kc4 {[%emt 0:00:12]} Bd6 {[%emt 0:00:41]} 70. c3 {[%emt 0:01:00]} Ke3 {[%emt 0:00:23]} 71. cxb4 {[%emt 0:00:42]} cxb4 {[%emt 0:00:09]} 72. Kb3 {[%emt 0:01:00]} Kf2 {[%emt 0:00:16]} 73. g4 {[%emt 0:00:08]} hxg4 {[%emt 0:00:09]} 74. hxg4 {[%emt 0:00:03]} Kg3 {[%emt 0:00:10]} 75. Bb1 {[%emt 0:00:10]} Kxg4 {[%emt 0:00:08]} 76. Bd3 {[%emt 0:00:18]} g5 {[%emt 0:00:32]} 77. Be2+ {[%emt 0:00:06]} Kf4 {[%emt 0:00:14]} 1-0

[Event "WJCC U20 Girls 2019"]
[Site "New Delhi"]
[Date "2019.10.22"]
[Round "8.5"]
[White "Dordzhieva, Dinara"]
[Black "Pandey Srishti"]
[Result "1/2-1/2"]
[ECO "E65"]
[WhiteElo "2335"]
[BlackElo "1963"]
[Annotator "RC"]
[PlyCount "99"]
[EventDate "2019.10.15"]
[EventType "swiss"]
[EventCountry "IND"]
[SourceTitle "playchess.com"]
[Source "ChessBase"]
[SourceQuality "1"]
[TimeControl "40/5400+30:1800+30"]

1. d4 {[%emt 0:00:00]} Nf6 {[%emt 0:00:00]} 2. c4 {[%emt 0:00:00]} g6 {[%emt 0:00:00]} 3. Nc3 {[%emt 0:00:00]} Bg7 {[%emt 0:00:00]} 4. g3 {[%emt 0:00:03]} O-O {[%emt 0:00:00]} 5. Bg2 {[%emt 0:00:03]} d6 {[%emt 0:00:00]} 6. Nf3 {[%emt 0:00:03]} c5 {[%emt 0:00:01]} 7. O-O {[%emt 0:01:04]} Nc6 {[%emt 0:00:02]} 8. dxc5 {[%emt 0:00:58]} dxc5 {[%emt 0:00:05]} 9. Be3 {[%emt 0:00:02]} Be6 {[%emt 0:00:13]} 10. Ng5 {[%emt 0:07:55]} Qxd1 {[%emt 0:11:07]} 11. Rfxd1 {[%emt 0:00:26]} Bxc4 {[%emt 0:00:10]} 12. Bxc5 {[%emt 0:01:05]} Rfe8 {[%emt 0:02:17]} 13. Rac1 {[%emt 0:04:40]} Rac8 {[%emt 0:02:21]} 14. b3 {[%emt 0:12:24]} Ba6 {[%emt 0:01:59]} 15. b4 {[%emt 0:09:05]} h6 {[%emt 0:39:39]} 16. Nh3 {[%emt 0:31:21]} b6 {[%emt 0:06:12]} 17. b5 {[%emt 0:00:33]} Bxb5 {[%emt 0:00:07]} 18. Nxb5 {[%emt 0:00:38]} bxc5 {[%emt 0:00:04]} 19. Rxc5 {[%emt 0:00:03]} Nb4 {[%emt 0:00:32]} 20. Rxc8 {[%emt 0:00:58]} Rxc8 {[%emt 0:00:02]} 21. Nxa7 {[%emt 0:00:04]} Rc5 {[%emt 0:06:25]} 22. a3 {[%emt 0:03:47]} Nbd5 {[%emt 0:01:30]} 23. Nf4 {[%emt 0:02:15]} Nxf4 {[%emt 0:04:45]} 24. gxf4 {[%emt 0:00:30]} e5 {[%emt 0:00:07]} 25. fxe5 {[%emt 0:18:59]} Rxe5 {[%emt 0:00:10]} 26. Nc6 {[%emt 0:00:53]} Rxe2 {[%emt 0:01:02]} 27. a4 {[%emt 0:00:02]} Ra2 {[%emt 0:02:50]} 28. a5 {[%emt 0:00:02]} Bf8 {[%emt 0:00:10]} 29. Rc1 {[%emt 0:00:51]} Bd6 {[%emt 0:01:39]} 30. Bf1 {[%emt 0:01:45]} Ne4 {[%emt 0:06:50]} 31. a6 {[%emt 0:01:50]} Bc5 {[%emt 0:05:57]} 32. Bd3 {[%emt 0:00:15]} Bxf2+ {[%emt 0:02:21]} 33. Kf1 {[%emt 0:00:03]} Be3 {[%emt 0:01:59]} 34. Rc2 {[%emt 0:01:18]} Rxc2 {[%emt 0:01:28]} 35. Bxc2 {[%emt 0:00:03]} Nf6 {[%emt 0:01:00]} 36. Ke2 {[%emt 0:00:32]} Bc5 {[%emt 0:00:28]} 37. Kd3 {[%emt 0:02:25]} Nd7 {[%emt 0:03:12]} 38. Kc4 {[%emt 0:00:21]} Bg1 {[%emt 0:00:46]} 39. Nd4 {[%emt 0:01:37]} Bxd4 {[%emt 0:00:05]} 40. Kxd4 {[%emt 0:00:15]} Nb8 {[%emt 0:00:08]} 41. Bd3 {[%emt 0:30:25]} Nxa6 {[%emt 0:30:04]} 42. Bxa6 {[%emt 0:00:02]} Kg7 {[%emt 0:00:21]} 43. Ke5 {[%emt 0:00:38]} h5 {[%emt 0:00:12]} 44. Bc4 {[%emt 0:00:05]} f6+ {[%emt 0:01:44]} 45. Ke6 {[%emt 0:00:03]} h4 {[%emt 0:00:21]} 46. Be2 {[%emt 0:00:41]} f5 {[%emt 0:01:06]} 47. Bf3 {[%emt 0:00:15]} g5 {[%emt 0:01:21]} 48. Kxf5 {[%emt 0:00:42]} g4 {[%emt 0:00:04]} 49. Bxg4 {[%emt 0:00:20]} h3 {[%emt 0:00:01]} 50. Ke4 1/2-1/2

[Event "WJCC U20 Girls 2019"]
[Site "New Delhi"]
[Date "2019.10.22"]
[Round "8.7"]
[White "Munkhzul, Turmunkh"]
[Black "Diakonova, Ekaterina"]
[Result "1-0"]
[ECO "B74"]
[WhiteElo "2332"]
[BlackElo "2231"]
[Annotator "RC"]
[PlyCount "179"]
[EventDate "2019.10.15"]
[EventType "swiss"]
[EventCountry "IND"]
[SourceTitle "playchess.com"]
[Source "ChessBase"]
[SourceQuality "1"]
[TimeControl "40/5400+30:1800+30"]

1. e4 {[%emt 0:00:00]} c5 {[%emt 0:00:00]} 2. Nf3 {[%emt 0:01:06]} g6 {[%emt 0:00:00]} 3. d4 {[%emt 0:01:52]} cxd4 {[%emt 0:00:00]} 4. Nxd4 {[%emt 0:00:08]} Bg7 {[%emt 0:00:00]} 5. Be2 {[%emt 0:04:15]} Nc6 {[%emt 0:00:20]} 6. Nb3 {[%emt 0:00:25]} Nf6 {[%emt 0:00:51]} 7. Nc3 {[%emt 0:00:49]} O-O {[%emt 0:01:18]} 8. O-O {[%emt 0:03:17]} d6 {[%emt 0:01:21]} 9. Be3 {[%emt 0:01:51]} a6 {[%emt 0:02:12]} 10. a4 {[%emt 0:05:51]} Na5 {[%emt 0:01:09]} 11. e5 {[%emt 0:11:39]} Ne8 {[%emt 0:05:37]} 12. Nxa5 {[%emt 0:02:48]} Qxa5 {[%emt 0:00:05]} 13. Nd5 {[%emt 0:00:49]} Qd8 {[%emt 0:13:08]} 14. exd6 {[%emt 0:09:17]} Nxd6 {[%emt 0:11:13]} 15. Bc5 {[%emt 0:04:29]} Be5 {[%emt 0:09:31]} 16. c3 {[%emt 0:05:40]} Bf5 {[%emt 0:11:42]} 17. f4 {[%emt 0:02:51]} Bg7 {[%emt 0:00:25]} 18. Bf3 {[%emt 0:01:04]} Nc8 {[%emt 0:08:28]} 19. Nxe7+ {[%emt 0:03:31]} Nxe7 {[%emt 0:00:04]} 20. Qd3 Qd7 21. Qxd7 {[%emt 0:00:40]} Rfd8 {[%emt 0:00:34]} 22. Bxe7 Rxd7 {[%emt 0:00:15]} 23. Bc5 {[%emt 0:01:52]} Rc8 {[%emt 0:02:16]} 24. Bb6 {[%emt 0:02:23]} Bc2 {[%emt 0:06:09]} 25. a5 {[%emt 0:02:12]} Bf8 {[%emt 0:01:32]} 26. Rac1 {[%emt 0:05:12]} Bb3 {[%emt 0:00:16]} 27. Bg4 {[%emt 0:00:33]} f5 {[%emt 0:01:12]} 28. Bd1 {[%emt 0:00:44]} Bc4 {[%emt 0:03:18]} 29. Ba4 {[%emt 0:01:30]} Rd3 {[%emt 0:07:08]} 30. Rfd1 {[%emt 0:01:26]} Bc5+ {[%emt 0:00:25]} 31. Bxc5 {[%emt 0:00:29]} Rxc5 {[%emt 0:00:04]} 32. Rxd3 {[%emt 0:00:54]} Bxd3 {[%emt 0:00:04]} 33. b4 {[%emt 0:00:39]} Rc7 {[%emt 0:00:31]} 34. Kf2 {[%emt 0:01:04]} Kf7 {[%emt 0:00:27]} 35. Bb3+ {[%emt 0:01:31]} Kf6 {[%emt 0:00:12]} 36. Bd5 {[%emt 0:03:38]} Bc4 {[%emt 0:00:34]} 37. Bf3 {[%emt 0:00:39]} Bb3 {[%emt 0:02:19]} 38. c4 {[%emt 0:00:35]} g5 {[%emt 0:02:07]} 39. fxg5+ {[%emt 0:01:48]} Kxg5 {[%emt 0:00:05]} 40. Bd5 {[%emt 0:00:50]} Ba4 {[%emt 0:00:22]} 41. Re1 {[%emt 0:30:36]} Bc6 {[%emt 0:30:52]} 42. Rd1 {[%emt 0:09:24]} Kf4 {[%emt 0:03:30]} 43. c5 {[%emt 0:03:42]} h5 {[%emt 0:06:35]} 44. Bc4 {[%emt 0:02:53]} h4 {[%emt 0:01:03]} 45. Rd6 {[%emt 0:00:00]} Rg7 {[%emt 0:00:00]} 46. Bd5 {[%emt 0:00:00]} Bxd5 {[%emt 0:00:00]} 47. Rxd5 {[%emt 0:00:00]} Ke4 {[%emt 0:00:00]} 48. Rd8 {[%emt 0:00:00]} Ke5 {[%emt 0:00:00]} 49. Rd6 {[%emt 0:00:00]} Rg4 {[%emt 0:00:00]} 50. Rb6 {[%emt 0:00:00]} Rc4 {[%emt 0:00:00]} 51. h3 {[%emt 0:00:00]} Rc2+ {[%emt 0:00:00]} 52. Kg1 {[%emt 0:00:00]} Rc1+ {[%emt 0:00:00]} 53. Kh2 {[%emt 0:00:00]} Rb1 {[%emt 0:00:00]} 54. Rxb7 {[%emt 0:00:00]} Ke6 {[%emt 0:00:00]} 55. Rb6+ {[%emt 0:00:00]} Kd5 {[%emt 0:00:00]} 56. Rd6+ {[%emt 0:00:00]} Ke5 {[%emt 0:00:00]} 57. Rxa6 {[%emt 0:00:00]} Rxb4 {[%emt 0:00:00]} 58. Rb6 {[%emt 0:00:00]} Ra4 {[%emt 0:00:00]} 59. a6 {[%emt 0:00:00]} Kd5 {[%emt 0:01:21]} 60. c6 {[%emt 0:00:00]} Kd6 {[%emt 0:00:04]} 61. c7+ {[%emt 0:00:00]} Kxc7 {[%emt 0:00:05]} 62. Rf6 {[%emt 0:00:00]} Rf4 {[%emt 0:00:59]} 63. Rf7+ {[%emt 0:00:00]} Kb8 {[%emt 0:00:06]} 64. g4 {[%emt 0:00:00]} hxg3+ {[%emt 0:03:09]} 65. Kxg3 {[%emt 0:00:00]} Ra4 {[%emt 0:00:57]} 66. Rf6 {[%emt 0:00:00]} Kc7 {[%emt 0:03:29]} 67. a7 {[%emt 0:00:00]} Kb7 {[%emt 0:00:01]} 68. Rxf5 {[%emt 0:00:00]} Kxa7 {[%emt 0:00:23]} 69. Rb5 {[%emt 0:00:00]} Ra1 {[%emt 0:00:22]} 70. Kg4 {[%emt 0:00:00]} Rg1+ {[%emt 0:00:24]} 71. Kh5 {[%emt 0:00:00]} Ka6 {[%emt 0:00:33]} 72. Rg5 {[%emt 0:00:25]} Rh1 {[%emt 0:00:20]} 73. h4 {[%emt 0:00:04]} Kb6 {[%emt 0:00:40]} 74. Rd5 {[%emt 0:00:09]} Kc6 {[%emt 0:00:19]} 75. Rd2 {[%emt 0:00:10]} Kc7 {[%emt 0:03:59]} 76. Kg5 {[%emt 0:00:21]} Rg1+ {[%emt 0:00:02]} 77. Kh6 {[%emt 0:00:16]} Rc1 {[%emt 0:00:56]} 78. h5 {[%emt 0:00:13]} Kb7 {[%emt 0:00:22]} 79. Rg2 Rc5 {[%emt 0:00:51]} 80. Rg5 {[%emt 0:01:15]} Rc6+ {[%emt 0:00:11]} 81. Kh7 {[%emt 0:00:17]} Kb8 {[%emt 0:00:46]} 82. Rg8+ {[%emt 0:00:27]} Kb7 {[%emt 0:00:06]} 83. h6 {[%emt 0:00:18]} Ka7 {[%emt 0:00:27]} 84. Kg7 {[%emt 0:00:22]} Rc7+ {[%emt 0:00:08]} 85. Kg6 {[%emt 0:00:07]} Rc6+ {[%emt 0:00:07]} 86. Kh5 {[%emt 0:00:16]} Rc5+ {[%emt 0:00:34]} 87. Rg5 {[%emt 0:00:11]} Rc1 {[%emt 0:00:33]} 88. h7 {[%emt 0:00:08]} Rc8 {[%emt 0:00:18]} 89. Rg8 {[%emt 0:00:05]} Rc5+ {[%emt 0:00:04]} 90. Kg4 {[%emt 0:00:09]} 1-0

[Event "WJCC U20 Girls 2019"]
[Site "New Delhi"]
[Date "2019.10.22"]
[Round "8.10"]
[White "Altantuya, Boldbaatar"]
[Black "Afraoui, Anaelle"]
[Result "1-0"]
[ECO "A48"]
[WhiteElo "2277"]
[BlackElo "2106"]
[Annotator "RC"]
[PlyCount "85"]
[EventDate "2019.10.15"]
[EventType "swiss"]
[EventCountry "IND"]
[SourceTitle "playchess.com"]
[Source "ChessBase"]
[SourceQuality "1"]
[TimeControl "40/5400+30:1800+30"]

1. d4 {[%emt 0:00:00]} Nf6 {[%emt 0:00:00]} 2. Nf3 {[%emt 0:00:00]} g6 {[%emt 0:00:00]} 3. Nc3 {[%emt 0:00:00]} d5 {[%emt 0:05:02]} 4. Bf4 {[%emt 0:00:09]} Bg7 {[%emt 0:00:17]} 5. h3 {[%emt 0:00:20]} O-O {[%emt 0:01:02]} 6. e3 {[%emt 0:00:18]} c5 {[%emt 0:01:20]} 7. Bd3 {[%emt 0:02:31]} Nc6 {[%emt 0:02:05]} 8. O-O {[%emt 0:08:16]} b6 {[%emt 0:01:58]} 9. Bh2 {[%emt 0:04:44]} Bf5 {[%emt 0:07:57]} 10. Bb5 {[%emt 0:04:31]} Na5 {[%emt 0:06:48]} 11. Ne5 {[%emt 0:02:55]} Qc8 {[%emt 0:12:07]} 12. Be2 {[%emt 0:11:20]} Rd8 {[%emt 0:00:36]} 13. Rc1 {[%emt 0:07:46]} h5 {[%emt 0:07:54]} 14. Qe1 {[%emt 0:06:07]} Nh7 {[%emt 0:05:36]} 15. dxc5 {[%emt 0:08:58]} Qxc5 {[%emt 0:02:21]} 16. Na4 Qc8 {[%emt 0:01:04]} 17. Qb4 {[%emt 0:16:02]} Qe6 {[%emt 0:10:08]} 18. Nf3 {[%emt 0:06:04]} d4 {[%emt 0:05:37]} 19. Bf4 {[%emt 0:02:19]} Rac8 {[%emt 0:02:29]} 20. Ba6 {[%emt 0:05:46]} Rxc2 {[%emt 0:02:20]} 21. Nxd4 {[%emt 0:02:13]} Bxd4 {[%emt 0:02:30]} 22. exd4 {[%emt 0:00:12]} Nc6 {[%emt 0:01:30]} 23. Qa3 {[%emt 0:01:52]} Nxd4 {[%emt 0:02:35]} 24. Rce1 {[%emt 0:01:22]} Qf6 {[%emt 0:10:19]} 25. Qxe7 {[%emt 0:04:32]} Qxe7 {[%emt 0:04:51]} 26. Rxe7 {[%emt 0:00:05]} b5 {[%emt 0:00:12]} 27. Nc3 {[%emt 0:01:43]} Rxb2 {[%emt 0:02:38]} 28. Rfe1 {[%emt 0:02:03]} Ne6 {[%emt 0:00:48]} 29. Be5 {[%emt 0:01:43]} b4 {[%emt 0:00:58]} 30. Nd5 {[%emt 0:00:18]} Rxa2 {[%emt 0:00:31]} 31. Nxb4 {[%emt 0:00:10]} Ra4 {[%emt 0:01:02]} 32. Nc6 {[%emt 0:00:26]} Ra8 {[%emt 0:00:48]} 33. Bb7 Rf8 {[%emt 0:00:08]} 34. Rd7 {[%emt 0:01:13]} Nhg5 {[%emt 0:00:42]} 35. Bd6 {[%emt 0:00:36]} Re8 {[%emt 0:00:36]} 36. h4 {[%emt 0:00:28]} Ne4 {[%emt 0:00:26]} 37. Ne7+ {[%emt 0:00:38]} Kg7 {[%emt 0:00:30]} 38. Bc6 {[%emt 0:00:17]} Ra5 {[%emt 0:00:36]} 39. Bxe4 {[%emt 0:00:08]} Bxe4 {[%emt 0:00:32]} 40. Rxe4 {[%emt 0:00:08]} Kf6 {[%emt 0:00:31]} 41. Bb4 {[%emt 0:30:50]} Ra1+ {[%emt 0:02:58]} 42. Kh2 {[%emt 0:00:00]} Rc1 {[%emt 0:00:16]} 43. Bc3+ {[%emt 0:00:00] Rg1 Kxg1+ Rh8} 1-0

[Event "WJCC U20 Girls 2019"]
[Site "New Delhi"]
[Date "2019.10.22"]
[Round "8.11"]
[White "Arpita, Mukherjee"]
[Black "Potluri Supreetha"]
[Result "1/2-1/2"]
[ECO "A45"]
[WhiteElo "2271"]
[BlackElo "1767"]
[Annotator "RC"]
[PlyCount "106"]
[EventDate "2019.10.15"]
[EventType "swiss"]
[EventCountry "IND"]
[SourceTitle "playchess.com"]
[Source "ChessBase"]
[SourceQuality "1"]
[TimeControl "40/5400+30:1800+30"]

1. d4 {[%emt 0:00:40]} Nf6 {[%emt 0:00:00]} 2. Bf4 {[%emt 0:00:24]} g6 {[%emt 0:00:00]} 3. Nc3 {[%emt 0:00:21]} d5 {[%emt 0:00:04]} 4. Qd2 {[%emt 0:00:36]} Bg7 {[%emt 0:00:50]} 5. Bh6 {[%emt 0:00:25]} O-O {[%emt 0:01:27]} 6. Bxg7 {[%emt 0:01:08]} Kxg7 {[%emt 0:00:04]} 7. O-O-O {[%emt 0:00:21]} c6 {[%emt 0:05:33]} 8. f3 {[%emt 0:00:21]} Qc7 {[%emt 0:20:44]} 9. e4 {[%emt 0:03:24]} dxe4 {[%emt 0:20:00]} 10. fxe4 {[%emt 0:01:15]} e5 {[%emt 0:03:09]} 11. dxe5 {[%emt 0:02:13]} Ng4 {[%emt 0:00:30]} 12. Nf3 {[%emt 0:02:00]} Nxe5 {[%emt 0:06:15]} 13. Nd4 {[%emt 0:05:35]} Nbd7 {[%emt 0:12:48]} 14. Be2 {[%emt 0:01:15]} b5 {[%emt 0:13:15]} 15. Qg5 {[%emt 0:11:12]} b4 {[%emt 0:10:11]} 16. Qe7 {[%emt 0:12:30]} Kg8 {[%emt 0:00:11]} 17. Nb1 {[%emt 0:03:27]} Qd8 {[%emt 0:02:04]} 18. Qxd8 {[%emt 0:02:40]} Rxd8 {[%emt 0:00:02]} 19. Nb3 {[%emt 0:01:48]} a5 {[%emt 0:01:27]} 20. Rd6 {[%emt 0:02:15]} Re8 {[%emt 0:00:44]} 21. N1d2 {[%emt 0:01:35]} c5 {[%emt 0:00:34]} 22. Bb5 {[%emt 0:07:29]} Rb8 {[%emt 0:00:33]} 23. Bxd7 {[%emt 0:02:28]} Nxd7 {[%emt 0:00:30]} 24. Nxa5 {[%emt 0:00:54]} Ra8 {[%emt 0:00:12]} 25. Ndc4 {[%emt 0:00:57]} Ne5 {[%emt 0:00:43]} 26. Kb1 {[%emt 0:12:04]} Nxc4 {[%emt 0:00:33]} 27. Nxc4 {[%emt 0:00:12]} Be6 {[%emt 0:00:25]} 28. Nb6 {[%emt 0:07:13]} Ra6 {[%emt 0:00:38]} 29. Rhd1 {[%emt 0:03:05]} Kg7 {[%emt 0:00:28]} 30. b3 {[%emt 0:03:17]} Rb8 {[%emt 0:00:32]} 31. Na4 {[%emt 0:01:18]} Rxd6 {[%emt 0:00:19]} 32. Rxd6 {[%emt 0:00:13]} Rc8 {[%emt 0:00:33]} 33. Nb6 {[%emt 0:06:25]} Re8 {[%emt 0:00:36]} 34. e5 {[%emt 0:01:36]} g5 {[%emt 0:00:25]} 35. Rc6 {[%emt 0:00:22]} Rd8 {[%emt 0:00:32]} 36. Kc1 {[%emt 0:01:14]} Bg4 {[%emt 0:00:07]} 37. Rxc5 {[%emt 0:02:00]} Rd1+ {[%emt 0:00:02]} 38. Kb2 {[%emt 0:00:01]} Be6 {[%emt 0:00:28]} 39. Rb5 {[%emt 0:01:30]} Rd2 {[%emt 0:01:22]} 40. Rxb4 {[%emt 0:01:01]} Rxg2 {[%emt 0:00:06]} 41. a4 {[%emt 0:02:03]} Rxh2 {[%emt 0:09:02]} 42. a5 {[%emt 0:02:21]} g4 {[%emt 0:01:37]} 43. a6 {[%emt 0:01:32]} g3 {[%emt 0:00:58]} 44. a7 {[%emt 0:00:48]} g2 {[%emt 0:00:16]} 45. a8=Q {[%emt 0:00:18]} g1=Q {[%emt 0:00:10]} 46. Qd8 {[%emt 0:05:11]} Rxc2+ {[%emt 0:10:18]} 47. Kxc2 {[%emt 0:02:20]} Bf5+ {[%emt 0:00:12]} 48. Kd2 {[%emt 0:01:42]} Qf2+ {[%emt 0:00:08]} 49. Kd1 {[%emt 0:00:12]} Qf1+ {[%emt 0:00:11]} 50. Kd2 {[%emt 0:00:07]} Qf2+ {[%emt 0:00:10]} 51. Kd1 {[%emt 0:00:08]} Qf1+ {[%emt 0:00:14]} 52. Kd2 {[%emt 0:00:05]} Qf2+ {[%emt 0:00:05]} 53. Kd1 {[%emt 0:00:03]} Qf1+ {[%emt 0:00:10]} 1/2-1/2